fUST/lending_fUST_20260104
["ID","MTS","AMOUNT","RATE_DAILY","PERIOD"]
[400377092,1767460962898,-402.90273775,0.00012182,2]
[400377093,1767460997746,152.5,0.000114,2]
[400377094,1767460998176,152.5,0.000121,2]
[400377095,1767461021633,150.85,0.00011609,2]
[400377096,1767461055683,152.5,0.000114,2]
[400377097,1767461117595,152.5,0.000114,2]
[400377100,1767461175130,152.51,0.000114,2]
[400377101,1767461186603,152.4,0.00011431,2]
[400377109,1767461233953,152.51,0.000114,2]
[400377127,1767461288447,-200.0,0.0002888,120]
[400377128,1767461288479,-200.0,0.00029232,120]
[400377129,1767461288510,-200.0,0.00029643,120]
[400377130,1767461288542,-200.0,0.00029654,120]
[400377131,1767461288575,-200.0,0.0003,120]
[400377132,1767461288604,-200.0,0.0003,120]
[400377133,1767461288635,-1000.0,0.0003,120]
[400377134,1767461293636,152.51,0.00011,2]
[400377135,1767461294168,152.51,0.000111,2]
[400377136,1767461294643,152.51,0.000111,2]
[400377137,1767461295119,152.51,0.000111,2]
[400377138,1767461295448,152.51,0.000111,2]
[400377139,1767461295815,152.51,0.000111,2]
[400377140,1767461296140,152.51,0.000112,2]
[400377141,1767461296579,152.51,0.000112,2]
[400377142,1767461296998,152.51,0.000112,2]
[400377143,1767461297307,152.51,0.000112,2]
[400377144,1767461297841,152.51,0.000113,2]
[400377145,1767461298361,152.51,0.000113,2]
[400377146,1767461298701,152.51,0.000113,2]
[400377147,1767461299233,152.51,0.000113,2]
[400377148,1767461299554,152.51,0.000113,2]
[400377149,1767461299979,152.51,0.000114,2]
[400377150,1767461300333,152.51,0.000114,2]
[400377151,1767461300765,152.51,0.000114,2]
[400377152,1767461301233,152.51,0.000114,2]
[400377468,1767461317024,220.52,9.232e-05,2]
[400377481,1767461317418,294.03,9.942e-05,2]
[400377495,1767461317817,367.53,0.00010652,2]
[400377509,1767461318215,441.04,0.00011362,2]
[400377523,1767461318630,514.55,0.00012072,2]
[400377635,1767461391603,150.35,8.78e-05,2]
[400377636,1767461392094,200.47,9.456e-05,2]
[400377637,1767461392491,250.59,0.00010131,2]
[400377638,1767461392916,300.71,0.00010807,2]
[400377639,1767461393278,99.54,0.00011482,2]
[400377640,1767461393302,251.29,0.00011482,2]
[400377642,1767461412988,2000.0,0.0003,120]
[400377643,1767461413279,2000.0,0.0003,120]
[400377644,1767461414446,924.535,0.0003,120]
[400377645,1767461415405,1000.0,0.0003,120]
[400377647,1767461415893,1000.0,0.0003,120]
[400377648,1767461416080,1000.0,0.0003,120]
[400377649,1767461416363,1000.0,0.0003,120]
[400377650,1767461416674,1000.0,0.0003,120]
[400377651,1767461416974,1000.0,0.0003,120]
[400377652,1767461417244,1000.0,0.0003,120]
[400377653,1767461417552,1000.0,0.0003,120]
[400377654,1767461417873,1000.0,0.0003,120]
[400377655,1767461419508,475.0,0.0003,120]
[400377656,1767461419826,475.0,0.0003,120]
[400377657,1767461420136,475.0,0.0003,120]
[400377659,1767461420441,475.0,0.0003,120]
[400377660,1767461420725,475.0,0.0003,120]
[400377661,1767461421054,475.0,0.0003,120]
[400377662,1767461421340,475.0,0.0003,120]
[400377663,1767461421620,475.0,0.0003,120]
[400377664,1767461421918,475.0,0.0003,120]
[400377665,1767461422199,475.0,0.0003,120]
[400377666,1767461422518,475.0,0.0003,120]
[400377667,1767461422837,475.0,0.0003,120]
[400377668,1767461423125,475.0,0.0003,120]
[400377669,1767461423619,475.0,0.0003,120]
[400377670,1767461423899,475.0,0.0003,120]
[400377671,1767461424271,475.0,0.0003,120]
[400377672,1767461424515,475.0,0.0003,120]
[400377673,1767461424807,475.0,0.0003,120]
[400377674,1767461425100,475.0,0.0003,120]
[400377675,1767461425414,475.0,0.0003,120]
[400377676,1767461425730,475.0,0.0003,120]
[400377677,1767461426031,475.0,0.0003,120]
[400377678,1767461426340,475.0,0.0003,120]
[400377679,1767461426631,475.0,0.0003,120]
[400377680,1767461426904,475.0,0.0003,120]
[400377681,1767461427202,475.0,0.0003,120]
[400377682,1767461427519,475.0,0.0003,120]
[400377683,1767461427812,475.0,0.0003,120]
[400377684,1767461428120,475.0,0.0003,120]
[400377685,1767461428371,475.0,0.0003,120]
[400377686,1767461428813,475.0,0.0003,120]
[400377687,1767461429090,475.0,0.0003,120]
[400377688,1767461429412,475.0,0.0003,120]
[400377689,1767461429667,475.0,0.0003,120]
[400377690,1767461430012,475.0,0.0003,120]
[400377691,1767461430287,475.0,0.0003,120]
[400377692,1767461430575,475.0,0.0003,120]
[400377693,1767461430897,475.0,0.0003,120]
[400377694,1767461431181,475.0,0.0003,120]
[400377695,1767461431553,475.0,0.0003,120]
[400377711,1767461431877,475.0,0.0003,120]
[400377740,1767461432375,475.0,0.0003,120]
[400377742,1767461432741,475.0,0.0003,120]
[400377743,1767461432842,475.0,0.0003,120]
[400377744,1767461433028,475.0,0.0003,120]
[400377745,1767461433309,475.0,0.0003,120]
[400377746,1767461433609,475.0,0.0003,120]
[400377747,1767461433916,475.0,0.0003,120]
[400377748,1767461434498,475.0,0.0003,120]
[400377749,1767461434557,475.0,0.0003,120]
[400377750,1767461434836,475.0,0.0003,120]
[400377751,1767461435152,475.0,0.0003,120]
[400377752,1767461435438,475.0,0.0003,120]
[400377753,1767461435835,475.0,0.0003,120]
[400377754,1767461436115,475.0,0.0003,120]
[400377755,1767461436419,475.0,0.0003,120]
[400377756,1767461436712,475.0,0.0003,120]
[400377757,1767461437014,475.0,0.0003,120]
[400377758,1767461437329,475.0,0.0003,120]
[400377759,1767461437618,475.0,0.0003,120]
[400377780,1767461438452,475.0,0.0003,120]
[400377781,1767461438788,475.0,0.0003,120]
[400377782,1767461439086,475.0,0.0003,120]
[400377783,1767461439391,475.0,0.0003,120]
[400377784,1767461439776,475.0,0.0003,120]
[400377791,1767461440115,475.0,0.0003,120]
[400377796,1767461440409,475.0,0.0003,120]
[400377799,1767461440725,475.0,0.0003,120]
[400377800,1767461441371,475.0,0.0003,120]
[400377801,1767461441670,475.0,0.0003,120]
[400377802,1767461441987,475.0,0.0003,120]
[400377803,1767461442273,475.0,0.0003,120]
[400377804,1767461442581,475.0,0.0003,120]
[400377811,1767461442879,475.0,0.0003,120]
[400377812,1767461443197,475.0,0.0003,120]
[400377814,1767461443579,475.0,0.0003,120]
[400377819,1767461443873,475.0,0.0003,120]
[400377820,1767461444154,475.0,0.0003,120]
[400377821,1767461444440,475.0,0.0003,120]
[400377823,1767461444929,475.0,0.0003,120]
[400377824,1767461445073,475.0,0.0003,120]
[400378038,1767461448157,-400.95,0.00012157,2]
[400378041,1767461448167,-592.0,0.00012157,2]
[400378043,1767461448177,-107.05,0.00012182,2]
[400378070,1767461462472,151.95,9.468e-05,2]
[400378071,1767461462874,189.93,0.00010145,2]
[400378072,1767461463291,227.92,0.00010821,2]
[400378073,1767461463761,265.9,0.00011497,2]
[400378082,1767461503892,167.763,0.000121,2]
[400378085,1767461522636,300.0,0.00012165,2]
[400378086,1767461533248,154.99,8.792e-05,2]
[400378087,1767461533753,206.66,9.468e-05,2]
[400378088,1767461534147,258.32,0.00010145,2]
[400378089,1767461534549,309.99,0.00010821,2]
[400378090,1767461534951,361.65,0.00011497,2]
[400378091,1767461557514,500.0,0.00012165,2]
[400378092,1767461557543,367.99306208,0.00012165,2]
[400378093,1767461557574,500.0,0.00012165,2]
[400378094,1767461557613,500.0,0.00012165,2]
[400378095,1767461557699,500.0,0.00012165,2]
[400378096,1767461557754,208.31757611,0.00012165,2]
[400378097,1767461557895,500.0,0.00012165,2]
[400378098,1767461558056,500.0,0.00012165,2]
[400378099,1767461558294,500.0,0.00012165,2]
[400378100,1767461558353,500.0,0.00012165,2]
[400378101,1767461558493,500.0,0.00012165,2]
[400378102,1767461558984,500.0,0.00012165,2]
[400378103,1767461559059,500.0,0.00012165,2]
[400378104,1767461559108,500.0,0.00012165,2]
[400378105,1767461559141,500.0,0.00012165,2]
[400378106,1767461559172,500.0,0.00012165,2]
[400378107,1767461559207,500.0,0.00012165,2]
[400378108,1767461559250,164.32636181,0.00012165,2]
[400378109,1767461559275,335.67363819,0.00012165,2]
[400378110,1767461559365,500.0,0.00012165,2]
[400378111,1767461559395,500.0,0.00012165,2]
[400378112,1767461559515,500.0,0.00012165,2]
[400378113,1767461559788,500.0,0.00012165,2]
[400378114,1767461559825,500.0,0.00012165,2]
[400378115,1767461559878,442.79885343,0.00012165,2]
[400378116,1767461570494,500.0,0.00012165,2]
[400378117,1767461570536,172.16579041,0.00012165,2]
[400378118,1767461570575,500.0,0.00012165,2]
[400378119,1767461570609,500.0,0.00012165,2]
[400378120,1767461570820,500.0,0.00012165,2]
[400378121,1767461570857,500.0,0.00012165,2]
[400378122,1767461571545,371.73178627,0.00012165,2]
[400378123,1767461571577,638.03744988,0.00012165,2]
[400378124,1767461571610,347.46863718,0.00012165,2]
[400378125,1767461582661,300.0,0.00012165,2]
[400378127,1767461605886,176.13,0.00010115,2]
[400378128,1767461606275,211.35,0.0001079,2]
[400378129,1767461606669,246.58,0.00011464,2]
[400378130,1767461607093,281.81,0.00012138,2]
[400378131,1767461616454,800.0,0.00012069,2]
[400378132,1767461642303,300.0,0.00012165,2]
[400378133,1767461650094,1908.21384821,0.00030136,120]
[400378134,1767461675996,164.98,0.00011488,2]
[400378135,1767461676413,188.55,0.00012164,2]
[400378136,1767461702106,22.73384464,0.00012165,2]
[400378137,1767461702130,277.26615536,0.00012165,2]
[400378138,1767461709931,64895.28940782,0.0003013,120]
[400378139,1767461728790,274.456505,0.00012074,2]
[400378141,1767461762694,300.0,0.00012165,2]
[400378142,1767461822365,300.0,0.00012165,2]
[400378143,1767461882327,300.0,0.00012165,2]
[400378144,1767461942714,300.0,0.00012165,2]
[400378145,1767462002169,300.0,0.00012165,2]
[400378148,1767462062272,300.0,0.00012165,2]
[400378149,1767462069523,219.565204,0.00012066,2]
[400378150,1767462073953,999.0,0.00011286,2]
[400378151,1767462103931,167.763,0.00012106,2]
[400378152,1767462122450,300.0,0.00012165,2]
[400378153,1767462182802,300.0,0.00012165,2]
[400378154,1767462191919,5000.0,0.0001216,2]
[400378155,1767462242711,300.0,0.00012165,2]
[400378156,1767462302365,300.0,0.00012165,2]
[400378157,1767462327155,61.95913564,0.00012165,2]
[400378158,1767462327179,98.35184807,0.00012165,2]
[400378159,1767462330634,257.59514345,0.00012165,2]
[400378162,1767462359348,500.0,0.00012165,2]
[400378163,1767462359406,345.82230328,0.00012165,2]
[400378165,1767462362317,300.0,0.00012165,2]
[400378166,1767462377827,4000.0,0.0001216,2]
[400378167,1767462382841,500.0,0.00012165,2]
[400378168,1767462382873,500.0,0.00012165,2]
[400378169,1767462382904,500.0,0.00012165,2]
[400378170,1767462382955,500.0,0.00012165,2]
[400378171,1767462383076,273.9129338,0.00012165,2]
[400378172,1767462383143,500.0,0.00012165,2]
[400378173,1767462383183,500.0,0.00012165,2]
[400378174,1767462383230,500.0,0.00012165,2]
[400378175,1767462383298,500.0,0.00012165,2]
[400378176,1767462383364,224.3277714,0.00012165,2]
[400378177,1767462401200,5000.0,0.00012105,2]
[400378178,1767462409812,175.6521632,0.00012066,2]
[400378179,1767462424393,4824.3578368,0.00012105,2]
[400378180,1767462424419,175.6421632,0.00012105,2]
[400378183,1767462447585,863.5822898,0.00012105,2]
[400378184,1767462482855,174.31,9.646e-05,2]
[400378185,1767462483266,217.89,0.00010335,2]
[400378186,1767462483681,261.47,0.00011024,2]
[400378187,1767462484180,305.04,0.00011713,2]
[400378188,1767462499312,8002.075547,0.00012066,2]
[400378189,1767462499341,10000.01,0.00012066,2]
[400378190,1767462499367,10000.01,0.00012066,2]
[400378191,1767462499392,10000.01,0.00012066,2]
[400378192,1767462499423,2134.27312156,0.00012066,2]
[400378193,1767462516164,4758.57556985,0.00012105,2]
[400378194,1767462533165,737.3555482,0.00012105,2]
[400378195,1767462540964,2369.80576039,0.00012105,2]
[400378196,1767462540988,2630.19423961,0.00012105,2]
[400378197,1767462553091,257.65,8.255e-05,2]
[400378198,1767462553492,386.47,8.943e-05,2]
[400378199,1767462553894,515.3,9.631e-05,2]
[400378200,1767462554335,644.12,0.00010319,2]
[400378201,1767462554767,772.94,0.00011007,2]
[400378202,1767462555147,901.77,0.00011695,2]
[400378203,1767462558462,2921.21112215,0.00012105,2]
[400378250,1767462591549,172.9500058,0.00011328,2]
[400378252,1767462629406,197.82,8.162e-05,2]
[400378253,1767462629807,296.73,8.842e-05,2]
[400378254,1767462630204,302.85463244,9.523e-05,2]
[400378255,1767462630228,92.78536756,9.523e-05,2]
[400378256,1767462630605,494.55,0.00010203,2]
[400378257,1767462630993,593.45,0.00010883,2]
[400378258,1767462631475,692.36,0.00011563,2]
[400378288,1767462632226,-437.59599249,0.00012166,2]
[400378290,1767462632236,-592.0,0.00012166,2]
[400378292,1767462632246,-300.0,0.00012181,2]
[400378294,1767462632256,-15789.25573292,0.00012182,2]
[400378296,1767462632265,-290.04726225,0.00012182,2]
[400378298,1767462632274,-791.27,0.00012243,2]
[400378300,1767462632284,-988.28,0.0001226,2]
[400378302,1767462632295,-2958.31,0.00012329,2]
[400378304,1767462632305,-2465.26,0.00012329,2]
[400378306,1767462632314,-2054.38,0.00012329,2]
[400378308,1767462632323,-1711.98,0.00012329,2]
[400378309,1767462632333,-1426.65,0.00012329,2]
[400378310,1767462632343,-1188.88,0.00012329,2]
[400378311,1767462632352,-990.73,0.00012329,2]
[400378312,1767462632365,-825.61,0.00012329,2]
[400378313,1767462632374,-688.01,0.00012329,2]
[400378314,1767462632384,-573.34,0.00012329,2]
[400378315,1767462632393,-477.78,0.00012329,2]
[400378316,1767462632403,-398.15,0.00012329,2]
[400378317,1767462632412,-331.79,0.00012329,2]
[400378318,1767462632421,-276.5,0.00012329,2]
[400378319,1767462632431,-230.41,0.00012329,2]
[400378320,1767462632443,-192.01,0.00012329,2]
[400378321,1767462632452,-160.01,0.00012329,2]
[400378322,1767462632463,-800.07,0.00012329,2]
[400378323,1767462632473,-151.0,0.00012329,2]
[400378324,1767462632483,-151.0,0.00012329,2]
[400378325,1767462632497,-244.549377,0.00012329,2]
[400378326,1767462632506,-190.596107,0.00012329,2]
[400378327,1767462632516,-190.596107,0.00012329,2]
[400378328,1767462632526,-190.596107,0.00012329,2]
[400378329,1767462632535,-190.596107,0.00012329,2]
[400378330,1767462632545,-175.65216318,0.0001245,2]
[400378331,1767462632554,-181.917085,0.00012618,2]
[400378332,1767462632564,-151.0,0.00012618,2]
[400378333,1767462632574,-3143.25569664,0.00012642,2]
[400378334,1767462632590,-250.0,0.00012729,2]
[400378335,1767462632599,-152.0,0.00012796,2]
[400378336,1767462632609,-152.0,0.00012796,2]
[400378337,1767462632619,-152.0,0.00012796,2]
[400378338,1767462632642,-214.47836614,0.00012796,2]
[400378339,1767462632653,-175.65216318,0.00012833,2]
[400378340,1767462632665,-219.0,0.0001285,2]
[400378341,1767462632675,-417.08,0.00012888,2]
[400378342,1767462632686,-1079.7035933,0.00012898,2]
[400378343,1767462632696,-151.0,0.000129,2]
[400378344,1767462632707,-219.0,0.00012938,2]
[400378345,1767462632718,-318.0,0.00012944,2]
[400378346,1767462632729,-219.0,0.00012948,2]
[400378347,1767462632740,-4225.0,0.00012988,2]
[400378348,1767462632750,-190.596107,0.00012988,2]
[400378349,1767462632761,-190.596107,0.00012988,2]
[400378350,1767462632771,-190.596107,0.00012988,2]
[400378351,1767462632782,-190.596107,0.00012988,2]
[400378352,1767462632792,-592.07561229,0.00012999,2]
[400378353,1767462632803,-500.0,0.00012999,2]
[400378354,1767462632813,-180.31660042,0.00012999,2]
[400378355,1767462632824,-500.0,0.00012999,2]
[400378356,1767462632834,-424.44072224,0.00012999,2]
[400378357,1767462632844,-500.0,0.00012999,2]
[400378358,1767462632854,-500.0,0.00012999,2]
[400378359,1767462632864,-500.0,0.00012999,2]
[400378360,1767462632874,-500.0,0.00012999,2]
[400378361,1767462632884,-500.0,0.00012999,2]
[400378362,1767462632894,-399.91300669,0.00012999,2]
[400378363,1767462632908,-100.08699331,0.00012999,2]
[400378364,1767462632918,-500.0,0.00012999,2]
[400378365,1767462632928,-500.0,0.00012999,2]
[400378366,1767462632937,-300.0,0.00012999,2]
[400378367,1767462632947,-1330.86509089,0.00013,7]
[400378368,1767462632980,-890.18,0.00012924,2]
[400378369,1767462632990,-721.70839152,0.00013,7]
[400378382,1767462638303,-4389.26336918,0.00013,7]
[400378383,1767462638316,-23339.68144704,0.00013,7]
[400378384,1767462638327,-473.32077286,0.00013,2]
[400378385,1767462638337,-151.0,0.00013,2]
[400378386,1767462638347,-190.596107,0.00013,2]
[400378387,1767462638360,-190.596107,0.00013,2]
[400378388,1767462638370,-190.596107,0.00013,2]
[400378389,1767462638380,-190.596107,0.00013,2]
[400378390,1767462638391,-219.0,0.00013003,2]
[400378391,1767462638402,-219.0,0.00013037,2]
[400378392,1767462638412,-219.0,0.00013046,2]
[400378393,1767462638423,-600.0,0.00013048,2]
[400378394,1767462638435,-219.0,0.00013163,2]
[400378395,1767462638445,-250.0,0.00013174,2]
[400378396,1767462638455,-219.0,0.00013196,2]
[400378397,1767462638466,-175.65216318,0.00013217,2]
[400378398,1767462638476,-500.0,0.00013273,2]
[400378399,1767462638486,-501.39987686,0.00013273,2]
[400378400,1767462638496,-500.0,0.00013273,2]
[400378401,1767462638506,-632.53093189,0.00013273,2]
[400378402,1767462638516,-360.64995814,0.00013273,2]
[400378403,1767462638527,-500.0,0.00013273,2]
[400378404,1767462638538,-500.0,0.00013273,2]
[400378405,1767462638558,-500.39540392,0.00013273,2]
[400378406,1767462638573,-500.0,0.00013273,2]
[400378407,1767462638586,-500.0,0.00013273,2]
[400378408,1767462638597,-500.0,0.00013273,2]
[400378409,1767462638609,-500.0,0.00013273,2]
[400378410,1767462638620,-418.41125218,0.00013273,2]
[400378411,1767462638630,-500.62183245,0.00013273,2]
[400378412,1767462638641,-500.0,0.00013273,2]
[400378413,1767462638652,-261.26036366,0.00013273,2]
[400378414,1767462638664,-500.0,0.00013273,2]
[400378415,1767462638675,-500.0,0.00013273,2]
[400378416,1767462638686,-500.0,0.00013273,2]
[400378417,1767462638697,-500.0,0.00013273,2]
[400378418,1767462638708,-176.45290614,0.00013273,2]
[400378419,1767462638719,-500.0,0.00013273,2]
[400378420,1767462638730,-500.0,0.00013273,2]
[400378421,1767462638741,-500.0,0.00013273,2]
[400378422,1767462638752,-500.0,0.00013273,2]
[400378423,1767462638763,-500.0,0.00013273,2]
[400378424,1767462638774,-500.0,0.00013273,2]
[400378425,1767462638786,-151.0,0.00013273,2]
[400378426,1767462638798,-190.596107,0.00013273,2]
[400378427,1767462638809,-190.596107,0.00013273,2]
[400378428,1767462638819,-190.596107,0.00013273,2]
[400378429,1767462638831,-190.596107,0.00013273,2]
[400378430,1767462638842,-219.47588639,0.00013273,2]
[400378431,1767462638853,-200.0,0.00013277,2]
[400378432,1767462638865,-219.0,0.00013347,2]
[400378433,1767462638876,-420.0,0.00013369,2]
[400378434,1767462638886,-224.24945607,0.00013414,2]
[400378435,1767462638897,-219.0,0.00013523,2]
[400378436,1767462638908,-500.0,0.00013579,2]
[400378437,1767462638920,-175.65216318,0.000136,2]
[400378438,1767462638930,-989.09,0.00013604,2]
[400378439,1767462638941,-219.0,0.00013614,2]
[400378440,1767462638952,-384.41725217,0.00013654,2]
[400378441,1767462638963,-219.0,0.00013666,2]
[400378442,1767462638974,-300.0,0.00013673,2]
[400378443,1767462638986,-500.0,0.00013698,2]
[400378444,1767462638997,-500.0,0.00013698,2]
[400378445,1767462639007,-500.0,0.00013698,2]
[400378446,1767462639019,-500.0,0.00013698,2]
[400378447,1767462639031,-500.0,0.00013698,2]
[400378448,1767462639041,-500.0,0.00013698,2]
[400378449,1767462639056,-500.0,0.00013698,2]
[400378450,1767462639067,-278.81933069,0.00013698,2]
[400378451,1767462639078,-500.0,0.00013698,2]
[400378452,1767462639089,-500.0,0.00013698,2]
[400378453,1767462639099,-500.0,0.00013698,2]
[400378454,1767462639110,-500.0,0.00013698,2]
[400378455,1767462639120,-500.0,0.00013698,2]
[400378456,1767462639131,-500.0,0.00013698,2]
[400378457,1767462639142,-500.0,0.00013698,2]
[400378458,1767462639276,-524.92390485,0.00013698,2]
[400378459,1767462639307,-500.0,0.00013698,2]
[400378460,1767462639318,-519.74087543,0.00013698,2]
[400378461,1767462639328,-500.0,0.00013698,2]
[400378462,1767462639338,-500.0,0.00013698,2]
[400378463,1767462639348,-238.60628684,0.00013698,2]
[400378464,1767462639360,-500.0,0.00013698,2]
[400378465,1767462639371,-500.0,0.00013698,2]
[400378466,1767462639381,-578.5215978,0.00013698,2]
[400378467,1767462639392,-550.73,0.00013698,2]
[400378468,1767462639402,-550.73,0.00013698,2]
[400378469,1767462639412,-550.73,0.00013698,2]
[400378470,1767462639422,-550.73,0.00013698,2]
[400378471,1767462639432,-550.73,0.00013698,2]
[400378472,1767462639442,-550.73,0.00013698,2]
[400378473,1767462639452,-550.73,0.00013698,2]
[400378474,1767462639462,-550.73,0.00013698,2]
[400378475,1767462639472,-550.73,0.00013698,2]
[400378476,1767462639482,-550.73,0.00013698,2]
[400378477,1767462639493,-550.73,0.00013698,2]
[400378478,1767462639507,-550.73,0.00013698,2]
[400378479,1767462639518,-550.73,0.00013698,2]
[400378480,1767462639529,-550.73,0.00013698,2]
[400378481,1767462639539,-550.73,0.00013698,2]
[400378482,1767462639549,-550.73,0.00013698,2]
[400378483,1767462639559,-550.73,0.00013698,2]
[400378484,1767462639569,-550.73,0.00013698,2]
[400378485,1767462639579,-550.73,0.00013698,2]
[400378486,1767462639589,-550.73,0.00013698,2]
[400378487,1767462639600,-550.73,0.00013698,2]
[400378488,1767462639610,-550.73,0.00013698,2]
[400378489,1767462639619,-550.73,0.00013698,2]
[400378490,1767462639629,-550.7663118,0.00013698,2]
[400378491,1767462639639,-500.0,0.00013698,2]
[400378492,1767462639650,-500.0,0.00013698,2]
[400378493,1767462639661,-529.49158367,0.00013698,2]
[400378494,1767462639670,-500.0,0.00013698,2]
[400378495,1767462639680,-500.0,0.00013698,2]
[400378496,1767462639689,-500.0,0.00013698,2]
[400378497,1767462639700,-500.0,0.00013698,2]
[400378498,1767462639710,-628.252,0.00013698,2]
[400378499,1767462639720,-500.0,0.00013698,2]
[400378500,1767462639730,-500.0,0.00013698,2]
[400378501,1767462639740,-500.0,0.00013698,2]
[400378502,1767462639750,-500.0,0.00013698,2]
[400378503,1767462639760,-500.0,0.00013698,2]
[400378504,1767462639770,-500.0,0.00013698,2]
[400378505,1767462639780,-500.0,0.00013698,2]
[400378506,1767462639790,-304.73497745,0.00013698,2]
[400378507,1767462639800,-500.0,0.00013698,2]
[400378508,1767462639810,-500.0,0.00013698,2]
[400378509,1767462639819,-509.5701643,0.00013698,2]
[400378510,1767462639829,-500.0,0.00013698,2]
[400378511,1767462639839,-500.0,0.00013698,2]
[400378512,1767462639851,-500.0,0.00013698,2]
[400378513,1767462639860,-500.0,0.00013698,2]
[400378514,1767462639870,-500.0,0.00013698,2]
[400378515,1767462639880,-507.32618552,0.00013698,2]
[400378516,1767462639890,-511.18829191,0.00013698,2]
[400378517,1767462639900,-500.0,0.00013698,2]
[400378518,1767462639909,-500.0,0.00013698,2]
[400378519,1767462639920,-204.20739823,0.00013698,2]
[400378520,1767462639966,-295.79260177,0.00013698,2]
[400378521,1767462639976,-366.86337256,0.00013698,2]
[400378522,1767462639986,-190.35985367,0.00013698,2]
[400378523,1767462639997,-0.23625333,0.00013698,2]
[400378524,1767462640007,-190.596107,0.00013698,2]
[400378525,1767462640017,-190.596107,0.00013698,2]
[400378528,1767462640027,-190.596102,0.00013698,2]
[400378531,1767462640037,-1125.29,0.00013698,2]
[400378532,1767462640046,-823.99338367,0.00013698,2]
[400378538,1767462640502,-301.29661633,0.00013698,2]
[400378539,1767462640512,-139.15338367,0.00013698,2]
[400378725,1767462647471,-986.13661633,0.00013698,2]
[400378726,1767462647480,-1125.29,0.00013698,2]
[400378727,1767462647490,-1125.29,0.00013698,2]
[400378728,1767462647499,-1125.29,0.00013698,2]
[400378729,1767462647510,-1125.29,0.00013698,2]
[400378730,1767462647520,-1125.29,0.00013698,2]
[400378731,1767462647529,-1125.29,0.00013698,2]
[400378732,1767462647539,-1125.29,0.00013698,2]
[400378733,1767462647548,-1125.29,0.00013698,2]
[400378734,1767462647557,-137.66626695,0.00013698,2]
[400378740,1767462705765,162.29,9.584e-05,2]
[400378741,1767462706171,216.39,0.00010322,2]
[400378742,1767462706589,270.49,0.00011059,2]
[400378743,1767462707013,324.58,0.00011796,2]